fUSD/lending_fUSD_20250220
["ID","MTS","AMOUNT","RATE_DAILY","PERIOD"]
[353830814,1740083438352,-643.515,0.0001,2]
[353830816,1740083438363,-277.40067284,0.0001,2]
[353830818,1740083438374,-466.04475668,0.0001,2]
[353830820,1740083438386,-1024.95834277,0.0001,2]
[353830822,1740083438398,-384.47,0.0001,2]
[353830824,1740083438409,-5535.40034938,0.0001,2]
[353830827,1740083438421,-18918.34567566,0.0001,2]
[353830829,1740083438432,-25816.5995293,0.0001,2]
[353830831,1740083438444,-4200.0,0.0001,2]
[353830833,1740083438455,-1596.54061176,0.0001,2]
[353830835,1740083438465,-6305.36144738,0.0001,2]
[353830928,1740083440211,-23969.000002,0.0001,2]
[353830930,1740083440223,-2068.63438604,0.0001,2]
[353830932,1740083440235,-2395.98,0.0001,2]
[353830935,1740083440247,-255.640002,0.0001,2]
[353830937,1740083440258,-16142.34721619,0.0001,2]
[353830939,1740083440270,-24104.6103854,0.0001,2]
[353830941,1740083440281,-916.88584093,0.0001,2]
[353830953,1740083440386,-246294.66280599,0.0001,2]
[353830955,1740083440398,-128281.268986,0.0001,2]
[353831247,1740083443360,-1951.41788,0.0001,2]
[353831251,1740083443372,-410.65284039,0.0001,2]
[353831254,1740083443384,-3443.6700847,0.0001,2]
[353831321,1740083443671,-4862.1988694,0.0001,2]
[353831323,1740083443681,-1040.66044974,0.0001,2]
[353831326,1740083443691,-311.47420348,0.0001,2]
[353831328,1740083443702,-512.27802841,0.0001,2]
[353831349,1740083443850,-582.983,0.0001,2]
[353831352,1740083443865,-3009.39221792,0.0001,2]
[353831354,1740083443877,-15025.0000001,0.0001,2]
[353831357,1740083443888,-11511.28316653,0.0001,2]
[353831359,1740083443899,-14082.99262931,0.0001,2]
[353831361,1740083443910,-10578.22555805,0.0001,2]
[353831363,1740083443922,-9837.67838884,0.0001,2]
[353831365,1740083443932,-1800.0,0.0001,2]
[353831367,1740083443943,-839.41211075,0.0001,2]
[353831370,1740083443954,-6604.62930248,0.0001,2]
[353831372,1740083443965,-500.0,0.0001,2]
[353831374,1740083443976,-2072.9767218,0.0001,2]
[353831376,1740083443987,-340.46258371,0.0001,2]
[353831378,1740083443998,-20407.95360061,0.0001,2]
[353831381,1740083444009,-5297.24587543,0.0001,2]
[353831623,1740083446396,-259.97559048,0.0001,2]
[353831625,1740083446408,-1005.84920001,0.0001,2]
[353831628,1740083446419,-367.93016713,0.0001,2]
[353833780,1740083977069,627.0,8.219e-05,2]
[353833781,1740084170259,165.16,8.767e-05,2]
[353833783,1740084231794,325.28,0.00013918,30]
[353833784,1740084303596,150.0,9e-05,2]
[353833785,1740084304051,150.0,9.5e-05,2]
[353833788,1740084310128,150.0,9e-05,2]
[353833796,1740084331340,-1975.84,9.749e-05,2]
[353833797,1740084331365,-2141.906,9.8e-05,2]
[353833798,1740084331391,-156.337,9.8e-05,2]
[353833799,1740084331417,-574.48039059,9.8e-05,2]
[353833800,1740084331443,-242.69,9.855e-05,2]
[353833801,1740084331468,-2402.92417582,9.994e-05,2]
[353833802,1740084331492,-250.0,9.994e-05,2]
[353833803,1740084331517,-448.32482545,9.999e-05,2]
[353833804,1740084331543,-150.0,9.999e-05,2]
[353833805,1740084331569,-182.0217411,9.999e-05,2]
[353833806,1740084331595,-1475.47586704,0.0001,2]
[353833816,1740084424847,-10000.0,0.0001,2]
[353833817,1740084632152,-1181.5663,9.9e-05,2]
[353833818,1740084632162,-150.0,9.999e-05,2]
[353833819,1740084632172,-64528.08986076,0.0001,2]
[353833820,1740084632207,-404.92261432,0.0001,2]
[353833821,1740084632218,-272.049998,0.0001,2]
[353833822,1740084632230,-2390.37141977,0.0001,2]
[353833823,1740084632242,-1448797.61759173,0.0001,2]
[353833824,1740084632253,-1127.60033307,0.0001,2]
[353833825,1740084632263,-390.74190505,0.0001,2]
[353833826,1740084632277,-189.15995956,0.0001,2]
[353833827,1740084632286,-186.57175949,0.0001,2]
[353833828,1740084632296,-163.67677193,0.0001,2]
[353833829,1740084632306,-550.0,0.0001,2]
[353833830,1740084632316,-679.2662474,0.0001,2]
[353833831,1740084632327,-178.67534704,0.0001,2]
[353833832,1740084632338,-4000.0,0.0001,2]
[353833833,1740084632347,-610.94732307,0.0001,2]
[353833834,1740084632358,-323.20347794,0.0001,2]
[353833835,1740084632368,-1595.50690456,0.0001,2]
[353833836,1740084632377,-1266.60292637,0.0001,2]
[353833837,1740084632387,-500.0,0.00010022,2]
[353833838,1740084632399,-168.63,0.00010063,2]
[353833839,1740084632409,-1231.32,0.00010073,2]
[353833840,1740084632419,-950.32,0.00010101,2]
[353833841,1740084632430,-200.0,0.00010152,2]
[353833842,1740084632441,-500.0,0.00010174,2]
[353833843,1740084632451,-500.0,0.00010174,2]
[353833844,1740084632461,-500.0,0.00010174,2]
[353833845,1740084632471,-423.97644729,0.00010216,2]
[353833846,1740084632481,-1000.0,0.0001023,2]
[353833847,1740084632491,-9089.36322711,0.00010361,2]
[353833848,1740084632501,-1559.2,0.000104,2]
[353833849,1740084632512,-1550.16,0.000104,2]
[353833850,1740084632523,-162.87,0.00010401,2]
[353833851,1740084632533,-964.57,0.00010427,2]
[353833852,1740084632543,-627.0,0.00010478,2]
[353833853,1740084632552,-776.07,0.000105,2]
[353833854,1740084632563,-879.32,0.000105,2]
[353833855,1740084632572,-423.9764473,0.00010533,2]
[353833856,1740084632582,-181.12,0.00010637,2]
[353833857,1740084632593,-987.13,0.00010685,2]
[353833858,1740084632603,-987.13,0.00010685,2]
[353833859,1740084632614,-986.26,0.00010685,2]
[353833860,1740084632623,-517.149428,0.0001081,2]
[353833861,1740084632633,-304.44,0.00010862,2]
[353833863,1740084632643,-679.26624739,0.000109,2]
[353833865,1740084632652,-306.79177955,0.000109,2]
[353833867,1740084632661,-168.63,0.00010901,2]
[353833869,1740084632670,-500.0,0.00010922,2]
[353833871,1740084632680,-500.0,0.00010958,2]
[353833873,1740084632690,-500.0,0.00010958,2]
[353833875,1740084632699,-500.0,0.00010958,2]
[353833877,1740084632710,-222.681613,0.00010958,2]
[353833880,1740084632721,-500.0,0.00010958,2]
[353833881,1740084632733,-500.0,0.00010958,2]
[353833883,1740084632744,-155.528312,0.00010958,2]
[353833886,1740084632754,-500.0,0.00010958,2]
[353833888,1740084632764,-167.641087,0.00010958,2]
[353833890,1740084632773,-500.0,0.00010958,2]
[353833892,1740084632784,-500.0,0.00010958,2]
[353833893,1740084632794,-500.0,0.00010958,2]
[353833895,1740084632804,-500.0,0.00010958,2]
[353833898,1740084632814,-500.0,0.00010958,2]
[353833900,1740084632824,-500.0,0.00010958,2]
[353833902,1740084632834,-252.71754339,0.00010958,2]
[353833904,1740084632844,-478.71942904,0.00010958,2]
[353833906,1740084632855,-500.0,0.00010958,2]
[353833908,1740084632865,-379.80067515,0.00010958,2]
[353833910,1740084632875,-500.0,0.00010958,2]
[353833912,1740084632885,-500.0,0.00010958,2]
[353833914,1740084632895,-500.0,0.00010958,2]
[353833916,1740084632904,-500.0,0.00010958,2]
[353833918,1740084632913,-500.0,0.00010958,2]
[353833920,1740084632923,-500.0,0.00010958,2]
[353833921,1740084632932,-500.0,0.00010958,2]
[353833924,1740084632943,-500.0,0.00010958,2]
[353833926,1740084632953,-500.0,0.00010958,2]
[353833927,1740084632962,-500.0,0.00010958,2]
[353833930,1740084632972,-500.0,0.00010958,2]
[353833932,1740084632982,-500.0,0.00010958,2]
[353833934,1740084632990,-500.0,0.00010958,2]
[353833936,1740084633000,-3610.767,0.00010998,2]
[353833937,1740084633010,-150.0,0.00010999,2]
[353833939,1740084633021,-255.0,0.00010999,2]
[353833941,1740084633030,-500.0,0.00011041,2]
[353833944,1740084633040,-500.0,0.00011041,2]
[353833945,1740084633050,-209.78,0.00011041,2]
[353833947,1740084633059,-500.0,0.00011041,2]
[353833949,1740084633069,-500.0,0.00011041,2]
[353833951,1740084633079,-500.0,0.00011041,2]
[353833953,1740084633089,-500.0,0.00011041,2]
[353833955,1740084633099,-500.0,0.00011041,2]
[353833957,1740084633111,-500.0,0.00011041,2]
[353833959,1740084633124,-500.0,0.00011041,2]
[353833961,1740084633134,-500.0,0.00011041,2]
[353833963,1740084633144,-8163.50254356,0.00011099,2]
[353833965,1740084633154,-8163.5025435,0.00011099,2]
[353833967,1740084633164,-8163.5025435,0.00011099,2]
[353833969,1740084633174,-8163.5025435,0.00011099,2]
[353833970,1740084633183,-8163.5025435,0.00011099,2]
[353833971,1740084633192,-7265.97547465,0.00011099,2]
[353833972,1740084633202,-7265.97547461,0.00011099,2]
[353833973,1740084633211,-7265.97547461,0.00011099,2]
[353833974,1740084633222,-4000.0,0.000111,2]
[353833975,1740084633231,-406.03069392,0.00011102,2]
[353833976,1740084633241,-500.0,0.00011123,2]
[353833977,1740084633250,-500.0,0.00011123,2]
[353833978,1740084633260,-500.0,0.00011123,2]
[353833979,1740084633270,-500.0,0.00011123,2]
[353833980,1740084633279,-500.0,0.00011123,2]
[353833981,1740084633289,-500.0,0.00011123,2]
[353833982,1740084633299,-500.0,0.00011123,2]
[353833983,1740084633309,-500.0,0.00011123,2]
[353833985,1740084633319,-332.33021901,0.00011123,2]
[353833987,1740084633329,-500.0,0.00011123,2]
[353833989,1740084633338,-500.0,0.00011205,2]
[353833991,1740084633348,-155.72573982,0.00011205,2]
[353833993,1740084633359,-500.0,0.00011205,2]
[353833995,1740084633369,-500.0,0.00011205,2]
[353833997,1740084633380,-500.0,0.00011205,2]
[353833999,1740084633388,-500.0,0.00011205,2]
[353834001,1740084633398,-500.0,0.00011205,2]
[353834003,1740084633408,-500.0,0.00011205,2]
[353834005,1740084633417,-500.0,0.00011205,2]
[353834007,1740084633429,-306.79177955,0.0001121,2]
[353834009,1740084633440,-569.0,0.0001125,2]
[353834011,1740084633451,-493.211,0.0001125,2]
[353834013,1740084633460,-1788.0,0.0001125,2]
[353834015,1740084633470,-1266.0,0.0001125,2]
[353834017,1740084633481,-908.0,0.0001125,2]
[353834019,1740084633491,-784.0,0.0001125,2]
[353834021,1740084633501,-4029.0,0.0001125,2]
[353834023,1740084633512,-150.0,0.0001125,2]
[353834025,1740084633522,-500.0,0.00011287,2]
[353834053,1740084633765,-500.0,0.00011287,2]
[353834055,1740084633776,-500.0,0.00011287,2]
[353834057,1740084633785,-500.0,0.00011287,2]
[353834059,1740084633795,-500.0,0.00011287,2]
[353834061,1740084633804,-500.0,0.00011287,2]
[353834063,1740084633813,-500.0,0.00011287,2]
[353834065,1740084633823,-8163.5025435,0.00011289,2]
[353834067,1740084633832,-1231.32,0.00011332,2]
[353834069,1740084633842,-323.20347792,0.00011369,2]
[353834071,1740084633851,-500.0,0.00011369,2]
[353834073,1740084633862,-500.0,0.00011369,2]
[353834075,1740084633872,-500.0,0.00011369,2]
[353834077,1740084633882,-500.0,0.00011369,2]
[353834079,1740084633891,-500.0,0.00011369,2]
[353834081,1740084633900,-332.69,0.00011369,2]
[353834083,1740084633910,-500.0,0.00011369,2]
[353834085,1740084633919,-1387.0,0.00011382,2]
[353834087,1740084633929,-3060.59878405,0.00011399,2]
[353834089,1740084633938,-1973.16,0.00011425,2]
[353834091,1740084633947,-150.0,0.00011425,2]
[353834093,1740084633956,-336.62,0.00011425,2]
[353834095,1740084633965,-237.99,0.00011425,2]
[353834097,1740084633975,-150.0,0.00011425,2]
[353834099,1740084633984,-150.0,0.00011425,2]
[353834101,1740084633994,-439.24,0.00011425,2]
[353834103,1740084634003,-439.24,0.00011425,2]
[353834105,1740084634012,-438.7,0.00011425,2]
[353834107,1740084634022,-500.0,0.00011452,2]
[353834109,1740084634031,-222.681613,0.00011452,2]
[353834111,1740084634041,-167.641087,0.00011452,2]
[353834113,1740084634050,-500.0,0.00011452,2]
[353834115,1740084634059,-500.0,0.00011452,2]
[353834117,1740084634069,-500.0,0.00011452,2]
[353834119,1740084634078,-500.0,0.00011452,2]
[353834121,1740084634086,-500.0,0.00011452,2]
[353834123,1740084634095,-1000.0,0.0001147,2]
[353834124,1740084634107,-650213.02116969,0.000115,2]
[353834128,1740084634132,-4344.05670002,0.000115,2]
[353834130,1740084634144,-4526.54749149,0.000115,2]
[353834133,1740084634155,-1184.17281378,0.000115,2]
[353834135,1740084634166,-3046.18841979,0.000115,2]
[353834137,1740084634178,-2875.5246611,0.000115,2]
[353834139,1740084634189,-1672.000009,0.000115,2]
[353834141,1740084634200,-472.4999982,0.000115,2]
[353834144,1740084634212,-585.49977958,0.000115,2]
[353834146,1740084634224,-384.54,0.000115,2]
[353834148,1740084634235,-757.1179525,0.000115,2]
[353834150,1740084634246,-622.02083582,0.000115,2]
[353834152,1740084634257,-255.53133888,0.000115,2]
[353834154,1740084634269,-627.31501192,0.000115,2]
[353834157,1740084634280,-400.24999975,0.000115,2]
[353834159,1740084634291,-382.3260001,0.000115,2]
[353834161,1740084634303,-443.3625,0.000115,2]
[353834163,1740084634314,-296.101408,0.000115,2]
[353834165,1740084634325,-286.29047868,0.000115,2]
[353834168,1740084634338,-301.35,0.000115,2]
[353834170,1740084634349,-1125.36084238,0.000115,2]
[353834172,1740084634361,-696.62044734,0.000115,2]
[353834178,1740084634405,-3011.57243541,0.000115,2]
[353834180,1740084634416,-20957.33272566,0.000115,2]
[353834182,1740084634426,-1000.0,0.00011509,2]
[353834184,1740084634439,-306.79177955,0.00011521,2]
[353834186,1740084634448,-500.0,0.00011534,2]
[353834188,1740084634458,-500.0,0.00011534,2]
[353834190,1740084634470,-500.0,0.00011534,2]
[353834192,1740084634479,-500.0,0.00011534,2]
[353834194,1740084634488,-500.0,0.00011534,2]
[353834196,1740084634497,-500.0,0.00011534,2]
[353834198,1740084634507,-500.0,0.00011544,2]
[353834200,1740084634517,-500.0,0.00011544,2]
[353834202,1740084634526,-8163.5025435,0.00011567,2]
[353834204,1740084634535,-500.0,0.00011616,2]
[353834206,1740084634544,-500.0,0.00011616,2]
[353834208,1740084634554,-500.0,0.00011616,2]
[353834210,1740084634563,-500.0,0.00011616,2]
[353834212,1740084634573,-500.0,0.00011616,2]
[353834214,1740084634582,-500.0,0.00011616,2]
[353834216,1740084634591,-500.0,0.00011698,2]
[353834218,1740084634601,-500.0,0.00011698,2]
[353834220,1740084634611,-500.0,0.00011698,2]
[353834222,1740084634620,-500.0,0.00011698,2]
[353834224,1740084634630,-500.0,0.00011698,2]
[353834226,1740084634640,-500.0,0.00011698,2]
[353834228,1740084634650,-610.94732306,0.00011704,2]
[353834230,1740084634660,-168.63,0.0001174,2]
[353834232,1740084634669,-250.0,0.0001177,2]
[353834234,1740084634678,-500.0,0.0001178,2]
[353834236,1740084634687,-500.0,0.0001178,2]
[353834238,1740084634697,-500.0,0.0001178,2]
[353834240,1740084634706,-500.0,0.0001178,2]
[353834242,1740084634715,-500.0,0.0001178,2]
[353834244,1740084634724,-500.0,0.0001178,2]
[353834246,1740084634733,-306.79177955,0.00011831,2]
[353834248,1740084634743,-8163.5025435,0.00011844,2]
[353834250,1740084634752,-639.63,0.00011863,2]
[353834252,1740084634761,-500.0,0.00011863,2]
[353834254,1740084634770,-500.0,0.00011863,2]
[353834256,1740084634779,-500.0,0.00011863,2]
[353834258,1740084634787,-500.0,0.00011863,2]
[353834260,1740084634796,-500.0,0.00011863,2]
[353834262,1740084634806,-300.0,0.00011899,2]
[353834264,1740084634815,-666.0,0.00011899,2]
[353834266,1740084634824,-679.26624739,0.000119,2]
[353834268,1740084634833,-500.0,0.00011945,2]
[353834270,1740084634843,-580.07969958,0.00011945,2]
[353834272,1740084634851,-500.0,0.00011945,2]
[353834274,1740084634862,-528.39170511,0.00011945,2]
[353834276,1740084634871,-500.0,0.00011945,2]
[353834278,1740084634880,-600.0,0.00012,2]
[353834280,1740084634889,-500.0,0.00012027,2]
[353834282,1740084634902,-500.0,0.00012027,2]
[353834284,1740084634911,-500.0,0.00012027,2]
[353834287,1740084634921,-877.31,0.00012027,2]
[353834288,1740084634931,-775.59,0.00012027,2]
[353834291,1740084634940,-1000.0,0.00012054,2]
[353834292,1740084634950,-15471.25,0.00012055,2]
[353834294,1740084634959,-152.0,0.0001206,3]
[353834297,1740084634969,-300.0,0.00012099,2]
[353834299,1740084634979,-320.45093159,0.00012099,2]
[353834301,1740084634988,-433.0,0.00012099,2]
[353834303,1740084634997,-1265.4898,0.000121,2]
[353834305,1740084635007,-1000.0,0.000121,2]
[353834307,1740084635016,-500.0,0.00012109,2]
[353834309,1740084635026,-500.0,0.00012109,2]
[353834310,1740084635035,-500.0,0.00012109,2]
[353834313,1740084635045,-8163.5025435,0.00012122,2]
[353834315,1740084635054,-1195.83,0.0001214,2]
[353834316,1740084635063,-306.79177955,0.00012141,2]
[353834319,1740084635072,-724.8216727,0.00012144,2]
[353834321,1740084635082,-500.0,0.00012191,2]
[353834323,1740084635091,-500.0,0.00012191,2]
[353834325,1740084635100,-500.0,0.00012191,2]
[353834326,1740084635112,-2000.0,0.00012199,2]
[353834329,1740084635122,-3466.46446508,0.000122,2]
[353834331,1740084635132,-304.44,0.00012219,2]
[353834333,1740084635141,-500.0,0.00012273,2]
[353834335,1740084635150,-610.8514255,0.00012273,2]
[353834337,1740084635159,-265.33,0.00012273,2]
[353834339,1740084635169,-170.77,0.00012294,2]
[353834341,1740084635178,-1876.51,0.00012299,2]
[353834343,1740084635187,-300.0,0.00012299,2]
[353834345,1740084635196,-300.0,0.00012299,2]
[353834347,1740084635206,-666.0,0.00012299,2]
[353834349,1740084635215,-68533.73895082,0.000123,2]
[353834351,1740084635224,-159.42343626,0.000123,2]
[353834353,1740084635234,-287.6116566,0.000123,2]
[353834355,1740084635244,-250.47340954,0.000123,2]
[353834357,1740084635253,-955.79,0.00012316,2]
[353834358,1740084635263,-1000.0,0.00012328,2]
[353834361,1740084635273,-500.0,0.00012329,2]
[353834363,1740084635283,-4000.0,0.0001235,2]
[353834364,1740084635292,-258.55006204,0.00012356,2]
[353834367,1740084635302,-288.06870109,0.00012375,2]
[353834369,1740084635312,-50188.90897112,0.00012389,2]
[353834371,1740084635321,-2000.0,0.0001239,2]
[353834373,1740084635330,-1266.60292637,0.0001239,2]
[353834375,1740084635340,-14081.93333041,0.00012392,2]
[353834377,1740084635356,-622.91559,0.00012392,2]
[353834380,1740084635375,-10819.04593609,0.00012392,2]
[353834387,1740084635430,-62148.36632757,0.00012392,2]
[353834389,1740084635443,-20891.30862732,0.00012392,2]
[353834391,1740084635454,-1782.26020424,0.00012392,2]
[353834394,1740084635465,-10518.65986611,0.00012392,2]
[353834396,1740084635477,-3059.95859964,0.00012392,2]
[353834398,1740084635488,-4050.0,0.00012392,2]
[353834400,1740084635499,-2719.999997,0.00012392,2]
[353834403,1740084635519,-2286.05256032,0.00012392,2]
[353834406,1740084635530,-81967.05087,0.00012392,2]
[353834408,1740084635541,-2483.67551588,0.00012392,2]
[353834410,1740084635552,-2629.81585268,0.00012392,2]
[353834412,1740084635563,-3185.9556171,0.00012392,2]
[353834414,1740084635574,-738.44822419,0.00012392,2]
[353834416,1740084635585,-1863.88495208,0.00012392,2]
[353834418,1740084635596,-892.55129881,0.00012392,2]
[353834421,1740084635609,-2650.38,0.00012392,2]
[353834423,1740084635620,-74835.52320145,0.00012392,2]
[353834426,1740084635643,-290.89011598,0.00012392,2]
[353834428,1740084635654,-455.85,0.00012392,2]
[353834517,1740084638114,-500.0,0.00010958,2]
[353834518,1740084638124,-7265.97547461,0.00011099,2]
[353834519,1740084638134,-11122.81045814,0.00012392,2]
[353834520,1740084638170,-49803.47053847,0.00012392,2]
[353834521,1740084638181,-1503.88525785,0.00012392,2]
[353834522,1740084638192,-19028.66123235,0.00012392,2]
[353834523,1740084638203,-169503.83409735,0.00012392,2]
[353834524,1740084638214,-775.44461026,0.00012392,2]
[353834525,1740084638226,-522.72435145,0.00012392,2]
[353834526,1740084638279,-3856.10296394,0.00012392,2]
[353834527,1740084638290,-9475.56248801,0.00012392,2]
[353834528,1740084638336,-459.21780327,0.00012392,2]
[353834708,1740084640269,-648.38324154,0.00012054,2]
[353834710,1740084640282,-351.61675846,0.00012054,2]
[353834712,1740084640292,-171.29512609,0.00012328,2]
[353834717,1740084640332,-828.70487391,0.00012328,2]
[353834719,1740084640342,-57266.06408541,0.00012392,2]
[353834721,1740084640352,-602.43914949,0.00012392,2]
[353834723,1740084640362,-6041.54763142,0.00012394,2]
[353834725,1740084640370,-859.55321798,0.00012394,2]
[353834743,1740084640549,-40388.90711142,0.00012395,2]
[353834745,1740084640560,-835.79739925,0.00012395,2]
[353834747,1740084640570,-32058.67603862,0.00012395,2]
[353834750,1740084640582,-387.89959704,0.00012395,2]
[353834752,1740084640594,-738.0,0.00012395,2]
[353834770,1740084640774,-266.88,0.00012395,2]
[353834772,1740084640786,-2407.17336082,0.00012395,2]
[353834775,1740084640797,-47108.55218256,0.00012395,2]
[353834777,1740084640806,-835.79739925,0.00012396,2]
[353834779,1740084640816,-859.55321798,0.00012396,2]
[353834781,1740084640826,-60597.97966308,0.00012397,2]
[353834783,1740084640836,-458.52370696,0.00012399,3]
[353834785,1740084640845,-300.0,0.00012399,2]
[353834787,1740084640854,-303.2840554,0.00012399,2]
[353834788,1740084640863,-666.0,0.00012399,2]
[353834790,1740084640872,-1244.0,0.000124,2]
[353834792,1740084640881,-784.13148572,0.000124,3]
[353834794,1740084640890,-286.51773933,0.000124,2]
[353834796,1740084640899,-930675.56583228,0.000124,3]
[353834798,1740084640909,-2176.38536838,0.000124,2]
[353834800,1740084640919,-133671.70703388,0.000124,3]
[353834802,1740084640928,-468686.89184153,0.000124,3]
[353834804,1740084640937,-154.64960884,0.000124,2]
[353834806,1740084640947,-151.0,0.000124,2]
[353834808,1740084640956,-151.0,0.000124,2]
[353834810,1740084640966,-151.0,0.000124,2]
[353834812,1740084640975,-151.0,0.000124,2]
[353834814,1740084640984,-151.0,0.000124,2]
[353834816,1740084640993,-151.0,0.000124,2]
[353834818,1740084641003,-151.0,0.000124,2]
[353834820,1740084641012,-151.0,0.000124,2]
[353834822,1740084641021,-151.0,0.000124,2]
[353834824,1740084641030,-151.0,0.000124,2]
[353834826,1740084641040,-151.0,0.000124,2]
[353834828,1740084641049,-151.0,0.000124,2]
[353834830,1740084641058,-151.0,0.000124,2]
[353834832,1740084641067,-151.0,0.000124,2]
[353834834,1740084641077,-155.466926,0.000124,2]
[353834836,1740084641086,-151.0,0.000124,2]
[353834838,1740084641096,-151.0,0.000124,2]
[353834840,1740084641105,-151.0,0.000124,2]
[353834842,1740084641116,-151.0,0.000124,2]
[353834844,1740084641125,-151.0,0.000124,2]
[353834846,1740084641134,-151.0,0.000124,2]
[353834848,1740084641143,-151.0,0.000124,2]
[353834850,1740084641153,-151.0,0.000124,2]
[353834852,1740084641163,-151.0,0.000124,2]
[353834854,1740084641172,-151.0,0.000124,2]
[353834856,1740084641181,-151.0,0.000124,2]
[353834858,1740084641190,-151.0,0.000124,2]
[353834860,1740084641199,-151.0,0.000124,2]
[353834862,1740084641209,-151.0,0.000124,2]
[353834864,1740084641219,-151.0,0.000124,2]
[353834866,1740084641229,-151.0,0.000124,2]
[353834868,1740084641238,-151.0,0.000124,2]
[353834870,1740084641248,-151.0,0.000124,2]
[353834872,1740084641257,-151.0,0.000124,2]
[353834874,1740084641266,-151.0,0.000124,2]
[353834876,1740084641275,-151.0,0.000124,2]
[353834878,1740084641285,-151.0,0.000124,2]
[353834880,1740084641296,-151.0,0.000124,2]
[353834882,1740084641306,-159.751344,0.000124,2]
[353834884,1740084641316,-151.0,0.000124,2]
[353834886,1740084641325,-151.0,0.000124,2]
[353834888,1740084641335,-151.0,0.000124,2]
[353834890,1740084641345,-151.0,0.000124,2]
[353834892,1740084641355,-154.030744,0.000124,2]
[353834894,1740084641363,-151.664242,0.000124,2]
[353834896,1740084641372,-151.0,0.000124,2]
[353834898,1740084641381,-151.0,0.000124,2]
[353834900,1740084641391,-151.0,0.000124,2]
[353834902,1740084641401,-151.0,0.000124,2]
[353834904,1740084641410,-151.0,0.000124,2]
[353834906,1740084641419,-151.0,0.000124,2]
[353834908,1740084641429,-8163.5025435,0.000124,2]
[353834910,1740084641441,-151.0,0.000124,2]
[353834912,1740084641450,-151.0,0.000124,2]
[353834914,1740084641459,-157.967918,0.000124,2]
[353834915,1740084641468,-157.967918,0.000124,2]
[353834917,1740084641479,-151.0,0.000124,2]
[353834919,1740084641489,-400.860322,0.000124,2]
[353834921,1740084641498,-151.0,0.000124,2]
[353834923,1740084641509,-400.860322,0.000124,2]
[353834925,1740084641518,-151.0,0.000124,2]
[353834927,1740084641528,-151.0,0.000124,2]
[353834930,1740084641537,-151.0,0.000124,2]
[353834931,1740084641546,-151.0,0.000124,2]
[353834933,1740084641556,-151.0,0.000124,2]
[353834935,1740084641566,-151.0,0.000124,2]
[353834937,1740084641575,-151.0,0.000124,2]
[353834939,1740084641584,-151.0,0.000124,2]
[353834941,1740084641594,-151.0,0.000124,2]
[353834943,1740084641603,-151.0,0.000124,2]
[353834945,1740084641614,-151.0,0.000124,2]
[353834947,1740084641623,-200.0,0.00012401,2]
[353834949,1740084641633,-15726.69945918,0.00012401,2]
[353834951,1740084641642,-286.51773933,0.00012402,2]
[353834953,1740084641652,-3872.78306676,0.00012403,2]
[353834955,1740084641661,-16382.7279938,0.00012404,2]
[353834957,1740084641671,-200.0,0.00012404,2]
[353834959,1740084641680,-409242.8701481,0.00012405,2]
[353834961,1740084641690,-58203.73344538,0.00012405,2]
[353834963,1740084641700,-4305.42508206,0.00012406,2]
[353834965,1740084641710,-1700.28799067,0.00012407,2]
[353834967,1740084641720,-1361.43653756,0.00012408,2]